fUST/lending_fUST_20240321
["ID","MTS","AMOUNT","RATE_DAILY","PERIOD"]
[319786636,1710964234532,-500.0,0.00033642,2]
[319786637,1710964234541,-500.0,0.00033642,2]
[319786639,1710964234551,-500.0,0.00033916,2]
[319786641,1710964234560,-500.0,0.00033916,2]
[319786643,1710964234569,-500.0,0.0003419,2]
[319786645,1710964234579,-500.0,0.00034464,2]
[319786647,1710964234589,-500.0,0.00034738,2]
[319786649,1710964234599,-154.8915759,0.00035,4]
[319786651,1710964234608,-500.0,0.00035012,2]
[319786653,1710964234617,-500.0,0.00035286,2]
[319786655,1710964234627,-50.824541,0.0003556,2]
[319786658,1710964234644,-449.175459,0.0003556,2]
[319786660,1710964234653,-2025.649642,0.00035616,120]
[319786661,1710964234664,-500.0,0.00035834,2]
[319786662,1710964234675,-500.0,0.00036108,2]
[319786663,1710964234684,-500.0,0.00036382,2]
[319786664,1710964234694,-500.0,0.00036656,2]
[319786665,1710964234702,-500.0,0.0003693,2]
[319786666,1710964234712,-500.0,0.00037204,2]
[319786667,1710964234721,-500.0,0.00037478,2]
[319786668,1710964234730,-500.0,0.00037752,2]
[319786669,1710964234739,-386.94052264,0.00038026,2]
[319786670,1710964234749,-317.79991253,0.00039,30]
[319786671,1710964234758,-373.31532749,0.00039,2]
[319786672,1710964234767,-154.87609912,0.0004,4]
[319786673,1710964234776,-166.50621223,0.0004,4]
[319786674,1710964234785,-1501.45830153,0.0004,2]
[319786675,1710964234795,-1000.0,0.00041095,2]
[319786676,1710964234804,-2025.649642,0.00041553,120]
[319786677,1710964234813,-1000.0,0.00042465,5]
[319786678,1710964234823,-373.31532749,0.00044,2]
[319786679,1710964234832,-8836.5312829,0.00045,120]
[319786680,1710964234841,-2025.649642,0.00047489,120]
[319786681,1710964234850,-1000.0,0.00048897,2]
[319786682,1710964234859,-1305.75018863,0.00048987,4]
[319786683,1710964234868,-500.0,0.00048996,2]
[319786684,1710964234878,-500.0,0.00048996,2]
[319786685,1710964234887,-500.0,0.00048996,2]
[319786686,1710964234896,-500.0,0.00048996,2]
[319786687,1710964234906,-154.96902787,0.00048998,4]
[319786688,1710964234918,-196.20514676,0.00049,90]
[319786689,1710964234928,-150.0,0.00049,68]
[319786690,1710964234940,-373.31532749,0.00049,2]
[319786691,1710964234949,-500.0,0.0004927,2]
[319786692,1710964234959,-171.92951264,0.000495,3]
[319786693,1710964234968,-500.0,0.00049544,31]
[319786694,1710964234977,-500.0,0.00049818,31]
[319786695,1710964234986,-154.99994117,0.00049948,2]
[319786697,1710964234996,-154.99995046,0.00049998,4]
[319786699,1710964235006,-196.44395734,0.00049998,4]
[319786701,1710964235015,-500.0,0.00049999,31]
[319786703,1710964235026,-33166.55266325,0.0005,2]
[319786705,1710964235035,-509.3810045,0.0005,21]
[319786707,1710964235045,-17086.48338101,0.0005,2]
[319786709,1710964235055,-400.0,0.0005,27]
[319786711,1710964235065,-159.3102212,0.0005,2]
[319786713,1710964235076,-500.0,0.00050092,31]
[319786714,1710964235085,-160.0,0.00050127,7]
[319786716,1710964235096,-500.0,0.00050199,31]
[319786718,1710964235106,-8514.09751673,0.000502,61]
[319786720,1710964235116,-22929.18848811,0.000502,120]
[319786723,1710964235129,-500.0,0.00050366,31]
[319786724,1710964235138,-197.97606211,0.00050498,4]
[319786726,1710964235148,-500.0,0.0005064,31]
[319786728,1710964235158,-500.0,0.00050914,31]
[319786730,1710964235176,-307.87008633,0.00051104,4]
[319786733,1710964235187,-500.0,0.00051188,31]
[319786735,1710964235204,-1047.26444616,0.00051204,4]
[319786737,1710964235215,-564.91344695,0.00051235,2]
[319786739,1710964235226,-500.0,0.00051462,31]
[319786741,1710964235237,-378.15613418,0.00051736,31]
[319786743,1710964235248,-160.0,0.00051844,8]
[319786745,1710964235258,-160.86681842,0.00051844,5]
[319786747,1710964235268,-200.0,0.00052,120]
[319786749,1710964235278,-10000.0,0.00052,30]
[319786751,1710964235288,-579.17766983,0.00052558,60]
[319786753,1710964235298,-2391.5034767,0.000528,2]
[319786755,1710964235308,-174.88,0.00052899,31]
[319786757,1710964235318,-18371.07927641,0.000529,30]
[319786759,1710964235327,-23439.22315761,0.000529,30]
[319786761,1710964235337,-218.2189913,0.000529,4]
[319786763,1710964235346,-1569.60958846,0.000529,4]
[319786765,1710964235355,-21201.20924211,0.000529,30]
[319786767,1710964235364,-35800.9151811,0.000529,30]
[319786769,1710964235373,-149999.0,0.000529,30]
[319786771,1710964235382,-149999.0,0.000529,30]
[319786773,1710964235392,-89105.67422447,0.000529,30]
[319786774,1710964235401,-123321.3551789,0.000529,30]
[319786776,1710964235414,-56004.90176496,0.000529,30]
[319786778,1710964235423,-287.46530222,0.000529,30]
[319786780,1710964235433,-149999.0,0.000529,30]
[319786782,1710964235445,-4563.41047817,0.000529,30]
[319786784,1710964235457,-149999.0,0.000529,30]
[319786787,1710964235471,-10120.1273197,0.000529,30]
[319786789,1710964235483,-11481.96140148,0.000529,30]
[319786791,1710964235493,-6472.19999998,0.000529,30]
[319786793,1710964235504,-2025.649642,0.00053425,120]
[319786795,1710964235516,-30669.23593991,0.000539,30]
[319786797,1710964235525,-149999.0,0.000539,30]
[319786799,1710964235534,-958.22421086,0.00054,120]
[319786801,1710964235543,-1107.18,0.00054794,2]
[319786803,1710964235553,-1107.18,0.00054794,2]
[319786805,1710964235562,-1107.18,0.00054794,2]
[319786807,1710964235571,-1107.18,0.00054794,2]
[319786809,1710964235581,-1107.18,0.00054794,2]
[319786811,1710964235590,-1107.18,0.00054794,2]
[319786813,1710964235600,-1107.18,0.00054794,2]
[319786815,1710964235609,-1107.18,0.00054794,2]
[319786817,1710964235619,-1107.18,0.00054794,2]
[319786819,1710964235628,-1107.18,0.00054794,2]
[319786821,1710964235638,-1107.18,0.00054794,2]
[319786822,1710964235647,-1107.18,0.00054794,2]
[319786824,1710964235657,-1107.18,0.00054794,2]
[319786826,1710964235672,-1107.18,0.00054794,2]
[319786828,1710964235683,-1107.18,0.00054794,2]
[319786830,1710964235693,-1107.18,0.00054794,2]
[319786832,1710964235703,-1107.18,0.00054794,2]
[319786834,1710964235715,-1107.18,0.00054794,2]
[319786836,1710964235724,-1107.18,0.00054794,2]
[319786838,1710964235734,-1107.18,0.00054794,2]
[319786840,1710964235743,-1107.18,0.00054794,2]
[319786842,1710964235753,-1107.18,0.00054794,2]
[319786844,1710964235762,-1107.18,0.00054794,2]
[319786846,1710964235771,-1107.29810296,0.00054794,2]
[319786848,1710964235781,-189.02813477,0.00054794,120]
[319786850,1710964235791,-507.78,0.00054794,120]
[319786852,1710964235800,-507.78,0.00054794,120]
[319786855,1710964235810,-507.78,0.00054794,120]
[319786857,1710964235823,-507.78,0.00054794,120]
[319786859,1710964235835,-507.78,0.00054794,120]
[319786861,1710964235846,-507.78,0.00054794,120]
[319786864,1710964235858,-507.78,0.00054794,120]
[319786865,1710964235870,-507.78,0.00054794,120]
[319786868,1710964235882,-507.78,0.00054794,120]
[319786870,1710964235894,-507.78,0.00054794,120]
[319786872,1710964235907,-507.78,0.00054794,120]
[319786874,1710964235924,-507.78,0.00054794,120]
[319786876,1710964235935,-507.78,0.00054794,120]
[319786878,1710964235946,-507.78,0.00054794,120]
[319786880,1710964235956,-507.78,0.00054794,120]
[319786883,1710964235967,-507.78,0.00054794,120]
[319786885,1710964235979,-507.78,0.00054794,120]
[319786887,1710964235994,-507.78,0.00054794,120]
[319786889,1710964236006,-507.78,0.00054794,120]
[319786892,1710964236017,-507.78,0.00054794,120]
[319786894,1710964236027,-507.78,0.00054794,120]
[319786896,1710964236038,-507.78,0.00054794,120]
[319786898,1710964236049,-507.78,0.00054794,120]
[319786900,1710964236060,-507.89667952,0.00054794,120]
[319786902,1710964236072,-500.0,0.00054794,2]
[319786905,1710964236084,-500.0,0.00054794,2]
[319786907,1710964236095,-500.0,0.00054794,2]
[319786909,1710964236107,-500.0,0.00054794,2]
[319786911,1710964236119,-500.0,0.00054794,2]
[319786913,1710964236130,-500.0,0.00054794,2]
[319786915,1710964236141,-500.0,0.00054794,2]
[319786918,1710964236152,-500.0,0.00054794,2]
[319786920,1710964236167,-500.0,0.00054794,2]
[319786922,1710964236177,-500.0,0.00054794,2]
[319786924,1710964236187,-500.0,0.00054794,2]
[319786926,1710964236198,-500.0,0.00054794,2]
[319786928,1710964236209,-176.96019307,0.00054794,2]
[319786930,1710964236221,-591.32494398,0.00054794,120]
[319786932,1710964236232,-2610.54,0.00054794,120]
[319786934,1710964236243,-250.0,0.00054794,2]
[319786936,1710964236254,-250.0,0.00054794,2]
[319786939,1710964236265,-250.0,0.00054794,2]
[319786941,1710964236277,-250.0,0.00054794,2]
[319786943,1710964236287,-250.0,0.00054794,2]
[319786945,1710964236298,-250.0,0.00054794,2]
[319786947,1710964236309,-250.0,0.00054794,2]
[319786949,1710964236320,-250.0,0.00054794,2]
[319786951,1710964236330,-250.0,0.00054794,2]
[319786953,1710964236341,-376.2463437,0.00054794,2]
[319786955,1710964236352,-500.0,0.00054794,120]
[319786958,1710964236363,-500.0,0.00054794,120]
[319786960,1710964236373,-500.0,0.00054794,120]
[319786962,1710964236384,-500.0,0.00054794,120]
[319786964,1710964236395,-500.0,0.00054794,120]
[319786966,1710964236407,-500.0,0.00054794,120]
[319786969,1710964236425,-500.0,0.00054794,120]
[319786971,1710964236435,-500.0,0.00054794,120]
[319786973,1710964236445,-500.0,0.00054794,120]
[319786975,1710964236456,-500.0,0.00054794,120]
[319786977,1710964236467,-500.0,0.00054794,120]
[319786979,1710964236476,-500.0,0.00054794,120]
[319786981,1710964236487,-500.0,0.00054794,120]
[319786983,1710964236506,-500.0,0.00054794,120]
[319786985,1710964236517,-500.0,0.00054794,120]
[319786987,1710964236528,-500.0,0.00054794,120]
[319786990,1710964236539,-500.0,0.00054794,120]
[319786992,1710964236550,-500.0,0.00054794,120]
[319786994,1710964236560,-500.0,0.00054794,120]
[319786996,1710964236573,-370.57101999,0.00054794,120]
[319786998,1710964236584,-1234.98015212,0.00054795,120]
[319787000,1710964236595,-1234.98015212,0.00054795,120]
[319787002,1710964236607,-1234.98015212,0.00054795,120]
[319787005,1710964236618,-1234.98015212,0.00054795,120]
[319787007,1710964236629,-1234.98015212,0.00054795,120]
[319787009,1710964236638,-1234.98015212,0.00054795,120]
[319787011,1710964236648,-1234.98015212,0.00054795,120]
[319787013,1710964236659,-1000.0,0.00055164,120]
[319787015,1710964236676,-202.27461331,0.00055376,4]
[319787017,1710964236687,-1753.95555146,0.00057,120]
[319787019,1710964236698,-50000.00000001,0.000589,120]
[319787022,1710964236709,-20000.0,0.000599,120]
[319787024,1710964236719,-581.48286527,0.0006,120]
[319787026,1710964236729,-669.03038035,0.0006,12]
[319787028,1710964236740,-217.0,0.00062,120]
[319787030,1710964236750,-10000.0,0.000621,120]
[319787032,1710964236761,-368.19562982,0.00063,30]
[319787034,1710964236772,-579.17766983,0.00063376,120]
[319787037,1710964236783,-10000.0,0.00064,60]
[319787039,1710964236794,-500.0,0.00065753,2]
[319787041,1710964236805,-500.0,0.00065753,120]
[319787043,1710964236816,-50032.79450851,0.0006588,120]
[319787045,1710964236827,-116565.042701,0.00066,120]
[319787047,1710964236838,-2610.54,0.00068493,120]
[319787050,1710964236850,-1000.0,0.00068779,120]
[319787052,1710964236860,-257.032211,0.00069,30]
[319787054,1710964236871,-1394.78816852,0.0007,120]
[319787056,1710964236881,-151.0,0.0007,120]
[319787058,1710964236891,-150.0,0.0007,120]
[319787060,1710964236901,-151.0,0.00071014,120]
[319787062,1710964236915,-151.0,0.00072027,120]
[319787064,1710964236925,-151.0,0.00073041,120]
[319787066,1710964236935,-151.0,0.00074055,120]
[319787068,1710964236947,-1000.0,0.00074399,120]
[319787070,1710964236957,-500.0,0.00074747,120]
[319787072,1710964236967,-151.0,0.00075068,120]
[319787074,1710964236976,-10000.0,0.00076,90]
[319787076,1710964236986,-151.0,0.00076082,120]
[319787078,1710964236999,-1469.4962745,0.00077,120]
[319787080,1710964237010,-151.0,0.00077096,120]
[319787083,1710964237020,-151.0,0.0007811,120]
[319787085,1710964237030,-151.0,0.00079123,120]
[319787087,1710964237040,-10000.0,0.000799,120]
[319787089,1710964237049,-1000.0,0.0008,120]
[319787091,1710964237059,-151.0,0.00080137,120]
[319787093,1710964237069,-151.0,0.00081151,120]
[319787095,1710964237080,-1000.0,0.00082076,120]
[319787097,1710964237090,-151.0,0.00082164,120]
[319787099,1710964237100,-2610.54,0.00082191,120]
[319787101,1710964237110,-500.0,0.00082191,120]
[319787103,1710964237121,-151.0,0.00083178,120]
[319787105,1710964237132,-151.0,0.00084192,120]
[319787107,1710964237142,-151.0,0.00085205,120]
[319787109,1710964237153,-151.0,0.00086219,120]
[319787111,1710964237165,-225.19,0.00087203,35]
[319787113,1710964237175,-150.5,0.00087213,35]
[319787115,1710964237186,-150.5,0.00087223,35]
[319787117,1710964237196,-151.0,0.00087233,120]
[319787121,1710964237218,-10000.0,0.00088,120]
[319787123,1710964237231,-137.09020518,0.00088,120]
[319787272,1710964238545,-500.0,0.00027397,2]
[319787274,1710964238555,-141.06609793,0.00027397,2]
[319787282,1710964238613,-421.71191111,0.00027397,2]
[319787284,1710964238623,-500.0,0.00027397,2]
[319787286,1710964238632,-500.0,0.00027397,2]
[319787288,1710964238642,-500.0,0.00027397,2]
[319787290,1710964238651,-500.0,0.00027397,2]
[319787292,1710964238660,-1234.98015212,0.00054795,120]
[319787293,1710964238671,-1234.98015212,0.00054795,120]
[319787295,1710964238680,-1234.98015212,0.00054795,120]
[319787297,1710964238689,-1234.98015212,0.00054795,120]
[319787299,1710964238698,-1234.98015212,0.00054795,120]
[319787302,1710964238708,-1234.98015212,0.00054795,120]
[319787304,1710964238717,-1234.98015212,0.00054795,120]
[319787306,1710964238726,-1234.98015212,0.00054795,120]
[319787308,1710964238735,-1234.98015212,0.00054795,120]
[319787310,1710964238744,-1234.98015212,0.00054795,120]
[319787311,1710964238753,-1234.98015212,0.00054795,120]
[319787314,1710964238762,-1234.98015212,0.00054795,120]
[319787316,1710964238771,-1234.98015212,0.00054795,120]
[319787317,1710964238780,-1234.98015212,0.00054795,120]
[319787319,1710964238789,-1234.98015212,0.00054795,120]
[319787321,1710964238798,-1234.98015212,0.00054795,120]
[319787324,1710964238808,-1234.98015212,0.00054795,120]
[319787325,1710964238817,-1234.98015212,0.00054795,120]
[319787327,1710964238826,-1234.98015212,0.00054795,120]
[319787329,1710964238835,-1234.98015212,0.00054795,120]
[319787332,1710964238844,-1234.98015212,0.00054795,120]
[319787334,1710964238854,-1234.98015212,0.00054795,120]
[319787336,1710964238863,-1234.98015212,0.00054795,120]
[319787338,1710964238872,-1234.98015212,0.00054795,120]
[319787340,1710964238883,-1234.98015212,0.00054795,120]
[319787342,1710964238892,-629.7484772,0.00054795,120]
[319787344,1710964238903,-605.23167492,0.00054795,120]
[319787346,1710964238913,-1234.98015212,0.00054795,120]
[319787348,1710964238922,-1234.98015212,0.00054795,120]
[319787350,1710964238931,-1234.98015212,0.00054795,120]
[319787352,1710964238941,-1234.98015212,0.00054795,120]
[319787354,1710964238950,-1234.98015212,0.00054795,120]
[319787356,1710964238958,-1234.98015212,0.00054795,120]
[319787358,1710964238967,-1234.98015212,0.00054795,120]
[319787360,1710964238975,-1234.98015212,0.00054795,120]
[319787362,1710964238984,-1234.98015212,0.00054795,120]
[319787363,1710964238993,-9320.10144969,0.00088,120]
[319787366,1710964239004,-2315.64099,0.00088,120]
[319787368,1710964239016,-1109.081745,0.00088,120]
[319787847,1710964242336,-359.50100004,0.00027396,2]
[319787848,1710964242348,-140.49899996,0.00027396,2]
[319787850,1710964242357,-500.0,0.0002767,2]
[319787851,1710964242366,-500.0,0.00027944,2]
[319787853,1710964242376,-564.41859398,0.00028218,2]
[319787854,1710964242385,-501.49837736,0.00031998,2]
[319787856,1710964242394,-2765.31521201,0.00088,120]
[319787857,1710964242404,-790.47624871,0.00088,120]
[319787859,1710964242415,-151.0,0.00088247,120]
[319787861,1710964242427,-151.0,0.0008926,120]
[319787864,1710964242438,-158.250309,0.00089931,2]
[319787865,1710964242447,-3756.64804548,0.0008999,120]
[319787867,1710964242459,-33700.33265279,0.0008999,120]
[319788057,1710964243898,-155.47831179,0.00027395,2]
[319788059,1710964243908,-36504.50204448,0.0008999,120]
[319788228,1710964248268,-500.67078008,0.00025122,2]
[319788230,1710964248277,-208.43611796,0.00027395,2]
[319788232,1710964248287,-1116.70585683,0.00027395,2]
[319788234,1710964248296,-500.0,0.00027396,2]
[319788236,1710964248306,-381.54,0.0002767,2]
[319788238,1710964248316,-3628.45810022,0.00087999,7]
[319788240,1710964248325,-2092.33866686,0.0008999,120]
[319788243,1710964248342,-25000.0,0.0008999,120]
[319788295,1710964347872,-355.87513785,0.00023256,2]
[319788296,1710964347998,-687.77022552,0.00024655,2]
[319788297,1710964348023,-154.92255111,0.00024655,2]
[319788298,1710964348047,-500.0,0.00025122,2]
[319788299,1710964348072,-500.0,0.00027396,2]
[319788300,1710964348097,-500.0,0.00027396,2]
[319788301,1710964348122,-500.0,0.00027396,2]
[319788302,1710964348146,-500.0,0.00027396,2]
[319788303,1710964348170,-365.37212129,0.00027396,2]
[319788304,1710964348194,-632.81,0.00027396,2]
[319788305,1710964348219,-500.0,0.00027397,2]
[319788306,1710964348245,-500.0,0.00027397,2]
[319788307,1710964348269,-500.0,0.00027397,2]
[319788308,1710964348293,-500.0,0.00027397,2]
[319788309,1710964348318,-500.0,0.00027397,2]
[319788310,1710964348343,-374.82157748,0.00027397,2]
[319788311,1710964348368,-500.0,0.00027397,2]
[319788312,1710964348391,-500.0,0.00027397,2]
[319788313,1710964348417,-500.0,0.0002767,2]
[319788314,1710964348441,-500.0,0.0002767,2]
[319788315,1710964348466,-500.0,0.00027944,2]
[319788316,1710964348499,-500.0,0.00028218,2]
[319788317,1710964348524,-500.0,0.00028492,2]
[319788318,1710964348549,-500.0,0.00028766,2]
[319788319,1710964348574,-446.06,0.0002904,2]
[319788323,1710964351437,-500.0,0.00031998,2]
[319788324,1710964351462,-500.0,0.00031998,2]
[319788325,1710964351490,-500.0,0.00031998,2]
[319788326,1710964351515,-500.0,0.00032272,2]
[319788327,1710964351541,-500.0,0.00032272,2]
[319788328,1710964351567,-500.0,0.00032546,2]
[319788329,1710964351592,-500.0,0.00032546,2]
[319788330,1710964351616,-500.0,0.0003282,2]
[319788331,1710964351640,-500.0,0.0003282,2]
[319788332,1710964351665,-500.0,0.00033094,2]
[319788333,1710964351690,-500.0,0.00033094,2]
[319788334,1710964351715,-500.0,0.00033368,2]
[319788335,1710964351743,-500.0,0.00033368,2]
[319788336,1710964351768,-436.90740718,0.00033642,2]
[319788337,1710964351792,-500.0,0.00033642,2]
[319788338,1710964351817,-500.0,0.00033916,2]
[319788339,1710964351841,-500.0,0.0003419,2]
[319788340,1710964351866,-500.0,0.00034464,2]
[319788341,1710964351890,-500.0,0.00034738,2]
[319788342,1710964351914,-500.0,0.00035012,2]
[319788343,1710964351938,-500.0,0.00035286,2]
[319788344,1710964351961,-500.0,0.0003556,2]
[319788345,1710964351985,-500.0,0.00035834,2]
[319788346,1710964352013,-500.0,0.00036108,2]
[319788347,1710964352037,-500.0,0.00036382,2]
[319788348,1710964352063,-500.0,0.00036656,2]
[319788349,1710964352088,-500.0,0.0003693,2]
[319788350,1710964352112,-469.84,0.00037204,2]
[319788351,1710964352136,-154.87609912,0.0004,4]
[319788354,1710964356109,-500.0,0.00048996,2]
[319788355,1710964356136,-500.0,0.00048996,2]
[319788360,1710964361276,-683.20086008,0.00054789,2]
[319788361,1710964361303,-1049.07547654,0.0005479,4]
[319788362,1710964361329,-11897.79049664,0.0005479,5]
[319788363,1710964361354,-8836.5312829,0.0005479,120]
[319788364,1710964361380,-288.01818278,0.00054791,2]
[319788365,1710964361405,-2245.38370106,0.00054791,2]
[319788370,1710964366215,154.87609912,0.0004,4]
[319788385,1710964388207,165.78686987,0.0004,4]
[319788388,1710964390638,1152.0,0.00048996,4]
[319788398,1710964402119,-363.19990004,0.00054788,30]
[319788399,1710964402144,-340.46025468,0.0005479,2]
[319788400,1710964402183,-683.20086008,0.00054791,2]
[319788401,1710964402212,-999.97992104,0.00054791,4]
[319788402,1710964402240,-3301.62259203,0.00054792,2]
[319788403,1710964402268,-500.0,0.00054793,120]
[319788404,1710964402298,-270.8443985,0.00054793,120]
[319788405,1710964402324,-239.09546587,0.00054794,4]
[319788406,1710964402352,-2994.16542344,0.00054794,2]
[319788407,1710964402382,-2284.22,0.00054794,120]
[319788410,1710964403672,500.0,0.00027396,2]
[319788411,1710964403994,500.0,0.0002767,2]
[319788412,1710964404295,500.0,0.00027944,2]
[319788414,1710964404582,605.13805413,0.00028218,2]
[319788415,1710964406541,1152.0,0.00048996,4]
[319788432,1710964428539,1152.0,0.00048996,4]
[319788443,1710964448546,1152.0,0.00048996,4]
[319788456,1710964452831,7462.07313019,0.00035,10]
[319788457,1710964452855,22527.33703101,0.00035,10]
[319788458,1710964452879,10938.3764937,0.00035,10]
[319788465,1710964470837,9145.43713171,0.00029996,2]
[319788468,1710964473067,500.0,0.00024657,2]
[319788469,1710964473325,500.0,0.00024931,2]
[319788471,1710964473611,500.0,0.00025205,2]
[319788472,1710964473872,500.0,0.00025479,2]
[319788473,1710964474162,1836.93125504,0.0003,30]
[319788476,1710964478181,476.98200662,0.00030913,30]
[319788486,1710964603935,-500.0,0.00025753,2]
[319788487,1710964603961,-500.0,0.00026027,2]
[319788488,1710964603985,-500.0,0.00026301,2]
[319788489,1710964604009,-500.0,0.00026575,2]
[319788490,1710964604033,-500.0,0.00026849,2]
[319788491,1710964604057,-389.64640755,0.00027123,2]
[319788492,1710964604081,-7748.43606094,0.0002988,2]
[319788493,1710964604105,-7759.8998938,0.0003,30]
[319788494,1710964604133,-2712.7478696,0.0003,2]
[319788495,1710964604157,-597.80075257,0.0003,2]
[319788496,1710964604645,500.0,0.00024657,2]
[319788497,1710964604922,500.0,0.00024931,2]
[319788498,1710964605506,500.0,0.00025205,2]
[319788499,1710964606310,500.0,0.00025479,2]
[319788500,1710964606395,179.15,0.00025753,2]
[319788501,1710964608008,-507.138284,0.00030112,2]
[319788502,1710964608033,-1008.0,0.00030913,4]
[319788503,1710964608058,-2311.13581442,0.00032,2]
[319788504,1710964608084,-21173.72590158,0.00035,10]
[319788505,1710964614404,-8208.07433266,0.00035,10]
[319788506,1710964614431,-1808.24689652,0.00035,2]
[319788507,1710964614455,-498.519,0.00035,7]
[319788508,1710964614490,-154.87609912,0.00035,4]
[319788509,1710964614518,-2491.48142764,0.00036,2]
[319788510,1710964614543,-317.79991253,0.00039,30]
[319788511,1710964614569,-500.70901122,0.0004,2]
[319788512,1710964614597,-8836.5312829,0.00045,120]
[319788513,1710964614624,-507.138284,0.00045168,2]
[319788514,1710964619556,1008.0,0.00030913,4]
[319788515,1710964641655,418.50500237,0.00030913,4]
[319788517,1710964657920,250.11875104,0.00031998,2]
[319788519,1710964734762,-251.74942222,0.00031998,2]
[319788520,1710964757421,500.0,0.00031998,2]
[319788521,1710964757890,500.0,0.00032272,2]
[319788522,1710964758164,500.0,0.00032546,2]
[319788523,1710965020342,500.0,0.00027396,2]
[319788524,1710965020515,500.0,0.0002767,2]
[319788525,1710965020807,500.0,0.00027944,2]
[319788526,1710965021049,610.68817012,0.00027396,2]
[319788527,1710965021082,299.65777501,0.00028218,2]
[319788528,1710965023669,501.98357693,0.00027396,2]
[319788529,1710965023924,500.0,0.00027396,2]
[319788530,1710965024300,500.0,0.0002767,2]
[319788531,1710965024611,500.0,0.00027944,2]
[319788532,1710965025008,500.0,0.00028218,2]
[319788533,1710965025309,500.0,0.00028492,2]
[319788534,1710965025642,500.0,0.00028766,2]
[319788535,1710965025894,500.0,0.0002904,2]
[319788536,1710965026019,500.0,0.00027396,2]
[319788537,1710965026298,500.0,0.0002767,2]
[319788538,1710965026843,500.0,0.00027944,2]
[319788539,1710965027914,500.0,0.00028218,2]
[319788540,1710965028222,500.0,0.00028492,2]
[319788541,1710965028492,500.0,0.00028766,2]
[319788542,1710965028807,500.0,0.0002904,2]
[319788543,1710965029118,500.0,0.00029314,2]
[319788544,1710965032976,500.0,0.00027396,2]
[319788545,1710965033215,500.0,0.0002767,2]
[319788546,1710965033486,500.0,0.00027944,2]
[319788547,1710965033776,500.0,0.00028218,2]
[319788548,1710965034059,500.0,0.00028492,2]
[319788549,1710965034364,500.0,0.00028766,2]
[319788550,1710965034619,500.0,0.0002904,2]
[319788551,1710965034920,512.4,0.00029314,2]
[319788552,1710965044449,500.0,0.00027396,30]
[319788553,1710965044688,500.0,0.0002767,30]
[319788554,1710965044948,500.0,0.00027944,30]
[319788555,1710965045306,622.54883287,0.00028218,30]
[319788556,1710965050040,500.0,0.00027396,2]
[319788557,1710965050379,500.0,0.0002767,2]
[319788558,1710965050664,462.92624871,0.00027944,2]
[319788559,1710965052787,500.0,0.00027396,2]
[319788560,1710965053084,500.0,0.00027396,2]
[319788561,1710965053113,500.0,0.0002767,2]
[319788562,1710965053339,500.0,0.0002767,2]
[319788563,1710965053369,500.0,0.00027944,2]
[319788564,1710965053596,500.0,0.00027944,2]
[319788565,1710965053989,500.0,0.00028218,2]
[319788566,1710965054304,500.0,0.00028218,2]
[319788567,1710965054334,500.0,0.00028492,2]
[319788568,1710965054600,176.51,0.00028766,2]
[319788569,1710965054629,500.0,0.00028492,2]
[319788570,1710965055047,313.28539636,0.00028766,2]
[319788571,1710965055071,186.71460364,0.00028766,2]
[319788572,1710965055314,500.0,0.0002904,2]